{"text_format":"1","workbook":"xlsx","n_sheets":2,"sheets":["2 класс","Лист1"],"not_rendered":{"charts":0,"images":0,"macros":1,"external_links":1,"defined_names":3,"comments":0,"pivot_tables":0},"unopened":[],"bounds":{"document_bytes":16777216,"sheet_cells":100000,"rows_first":2000,"rows_last":500,"rows_between":2000,"halvings":0,"cell_chars":16384,"cell_head_chars":4096},"cells_cut":0,"cells_raw":0,"read":"whole","date_system":"1900"}

{"sheet":"2 класс","index":0,"n_rows":142,"n_cols":12,"rows_kept":142,"cut":false,"hidden":false,"merged":[[0,0,0,11]]}
["Таблица предварительных результатов муниципального этапа КРОШ (красноярской олимпиады школьников) по английскому языку для обучающихся 2-6 классов"]
[null,null,null,null,null,null,"2 класс"]
[null,"Дата проведеня",null,null,"Место проведения",null,null,null,"Председатель жюри"]
[null,"14 марта 2026 года",null,null,"МАОУ Гимназия № 9 г. Красноярска",null,null,null,"Дадашева Галина Сергеевна"]
["№","Район","Фамилия",null,"Образовательная организация","Шифр","Конкурс «Listening» ","Конкурс «Reading» ","Конкурс «Use of English»","Конкурс устной речи (Speaking) ","Итого","Тип диплома"]
[null,null,"Максимальный балл . .",null,null,null,10,10,20,10,{"$f":"SUM(G6:J6)","v":50}]
[1,"Центральный","Кеннеди Л. .",null,"МАОУ Гимназия № 2 г. Красноярск",2111,10,10,20,10,{"$f":"SUM(G7:J7)","v":50}]
[2,"Советский","Журавкова Д. А.",null,"МАОУ СШ № 150 г. Красноярск",2100,10,10,19,10,49]
[3,"Советский","Астриков А. В.",null,"МАОУ СШ № 157 г. Красноярск",2104,10,10,20,6,46]
[4,"ЖД","Растошинский А. И.",null,"МАОУ СШ № 32 г. Красноярск",2007,10,10,19,7,46]
[5,"Свердловский","Бен-Зви Л. Р.",null,"МАОУ СШ № 42 г. Красноярск",2067,10,10,16,9,45]
[6,"Октябрьский ","Бынков Я. Е.",null,"МАОУ Гимназия № 13 \"Академ\"",2027,10,10,15,10,45]
[7,"Советский","Карчушкин К. В.",null,"МАОУ СШ № 98 г. Красноярск",2105,10,10,19,6,45]
[8,"Центральный","Александров Д. О.",null,"МАОУ СШ «Комплекс Покровский» г. Красноярск",2127,10,10,18,6,44]
[9,"Центральный","Антипин А. В.",null,"МАОУ Гимназия № 2 г. Красноярск",2107,10,10,20,4,44]
[10,"Октябрьский ","Митин Ф. Г.",null,"МАОУ Гимназия № 13 \"Академ\"",2029,9,10,17,8,44]
[11,"Советский","Савчик Я. А.",null,"МАОУ СШ № 143 г. Красноярск",2096,8,10,18,8,44]
[12,"Центральный","Тимофеев А. М.",null,"МАОУ Гимназия № 2 г. Красноярск",2123,9,10,19,6,44]
[13,"Октябрьский","Бородин О. М.",null,"МАОУ «КУГ № 1 – Универс» г. Красноярск",2019,10,9,15,9,43]
[14,"ЖД","Герасимов Г. Д.",null,"МАОУ Гимназия № 8 г. Красноярск",2001,10,10,18,5,43]
[15,"Свердловский","Луговских М. А.",null,"МАОУ СШ № 23 г. Красноярск",2066,10,10,19,4,43]
[16,"Октябрьский ","Переслыцких Д. А.",null,"МАОУ Гимназия № 13 \"Академ\"",2030,10,10,17,6,43]
[17,"Советский","Харева В. С.",null,"МАОУ СШ № 149 г. Красноярск",2099,10,10,18,5,43]
[18,"Октябрьский ","Ходос М. Е.",null,"МАОУ Гимназия № 13 \"Академ\"",2033,10,10,18,5,43]
[19,"Центральный","Цибизов Д. Д.",null,"МБОУ Гимназия № 16 г. Красноярск",2133,10,10,20,3,43]
[20,"Центральный","Шпинева М. В.",null,"МАОУ Гимназия № 2 г. Красноярск",2126,10,10,17,6,43]
[21,"Октябрьский ","Бастриков А. К.",null,"МАОУ Гимназия № 13 \"Академ\"",2025,10,9,16,7,42]
[22,"Свердловский","Кокаев Э. Д.",null,"МАОУ СШ № 45 г. Красноярск",2069,10,9,18,5,42]
[23,"ЖД","Краев А. В.",null,"МБОУ Прогимназия № 131 г. Красноярск",2010,10,10,19,3,42]
[24,"Кировский","Максимец П. С.",null,"МАОУ Лицей № 6 «Перспектива» г. Красноярск",2013,10,10,15,7,42]
[25,"Центральный","Питенёв С. В.",null,"МБОУ Гимназия № 16 г. Красноярск",2132,10,10,17,5,42]
[26,"Октябрьский","Коробенко А. Е.",null,"МБОУ СШ № 36 г. Красноярск",2039,10,10,13,8,41]
[27,"Советский","Логинов А. А.",null,"МАОУ СШ № 151 г. Красноярск",2103,9,10,16,6,41]
[28,"Центральный","Маркова В. А.",null,"МБОУ Гимназия № 16 г. Красноярск",2131,10,10,18,3,41]
[29,"Советский","Симонян Э. А.",null,"МАОУ СШ № 149 г. Красноярск",2098,10,10,16,5,41]
[30,"Октябрьский","Соседкин Я. Д.",null,"МАОУ «КУГ № 1 – Универс» г. Красноярск",2021,10,10,16,5,41]
[31,"ЖД","Ашаев К. А.",null,"МАОУ СШ № 32 г. Красноярск",2006,6,10,18,6,40]
[32,"Октябрьский ","Басманов М. М.",null,"МАОУ Гимназия № 13 \"Академ\"",2024,10,10,16,4,{"$f":"SUM(G38:J38)","v":40}]
[33,"Свердловский","Завельева А. А.",null,"МАОУ СШ № 158 г. Красноярск",2065,8,10,18,4,40]
[34,"жд","Золотарева А. Е.",null,"МАОУ Лицей № 28 г. Красноярск",2003,8,10,17,5,40]
[35,"Октябрьский","Левковская А. В.",null,"МАОУ СШ № 3 г. Красноярск",2034,10,9,12,9,40]
[36,"Октябрьский ","Рябчевский В. А.",null,"МАОУ Гимназия № 13 \"Академ\"",2032,10,10,15,5,40]
[37,"Октябрьский","Баянов Д. К.",null,"МАОУ «КУГ № 1 – Универс» г. Красноярск",2018,10,10,15,4,39]
[38,"Кировский","Косолапова М. Д.",null,"МАОУ Лицей № 11 г. Красноярск",2012,9,10,14,6,39]
[39,"Октябрьский","Лебедев Д. Т.",null,"МАОУ «КУГ № 1 – Универс» г. Красноярск",2020,9,10,15,5,39]
[40,"Октябрьский ","Баскакова В. С.",null,"МАОУ Гимназия № 13 \"Академ\"",2023,7,10,16,5,38]
[41,"Советский","Ханаков Т. С.",null,"МАОУ СШ № 150 г. Красноярск",2102,10,10,14,4,38]
[42,"Советский","Выходцева А. П.",null,"МАОУ СШ № 149 г. Красноярск",2097,9,10,13,5,37]
[43,"Центральный","Костюченко В. А.",null,"МБОУ СШ № 4 г. Красноярск",2134,9,10,14,4,37]
[44,"Центральный","Кузнецова П. А.",null,"МБОУ Гимназия № 16 г. Красноярск",2130,10,10,14,3,37]
[45,"Центральный","Летягина А. А.",null,"МАОУ Гимназия № 2 г. Красноярск",2114,5,10,17,5,37]
[46,"Советский","Пиджакова М. Е.",null,"МАОУ СШ № 150 г. Красноярск",2101,6,9,18,4,37]
[47,"Октябрьский ","Болотина М. С.",null,"МАОУ Гимназия № 13 \"Академ\"",2026,8,10,16,2,36]
[48,"Центральный","Кузнецова К. А.",null,"МБОУ Гимназия № 16 г. Красноярск",2129,10,10,13,3,36]
[49,"Центральный","Мамонтов И. С.",null,"МАОУ Гимназия № 2 г. Красноярск",2116,10,10,10,6,36]
[50,"Кировский","Матвеева А. А.",null,"МАОУ Лицей № 6 «Перспектива» г. Красноярск",2014,8,10,15,3,36]
[51,"ЖД","Тюликова Е. С.",null,"МАОУ СШ № 32 г. Красноярск",2008,8,10,15,3,36]
[52,"Октябрьский","Кибалина В. А.",null,"МБОУ СШ № 36 г. Красноярск",2038,10,9,15,1,35]
[53,"Кировский","Портнягина Д. Д.",null,"МАОУ Лицей № 6 «Перспектива» г. Красноярск",2015,8,10,14,3,35]
[54,"Октябрьский","Шарипова А. Р.",null,"МБОУ СШ № 84 г. Красноярск",2059,10,9,15,1,35]
[55,"Свердловский","Матыскин Я. А.",null,"МАОУ СШ № 45 г. Красноярск",2071,8,10,13,3,34]
[56,"Кировский","Сидун С. Д.",null,"МАОУ Лицей № 6 «Перспектива» г. Красноярск",2016,9,10,13,2,34]
[57,"Кировский","Скала П. П.",null,"МАОУ Лицей № 6 «Перспектива» г. Красноярск",2017,9,10,14,1,34]
[58,"Октябрьский","Шестаков М. Д.",null,"МАОУ «КУГ № 1 – Универс» г. Красноярск",2022,9,10,11,4,34]
[59,"Советский","Шедько А. М.",null,"МАОУ СШ № 1 г. Красноярск",2083,7,9,15,2,33]
[60,"Октябрьский","Горбунов Т. Н.",null,"МБОУ СШ № 36 г. Красноярск",2036,8,10,12,2,32]
[61,"жд","Адиятов М. И.",null,"МАОУ Лицей № 28 г. Красноярск",2002,8,10,13,0,31]
[62,"Октябрьский","Андреева В. В.",null,"МБОУ СШ № 36 г. Красноярск",2035,8,9,12,2,31]
[63,"Советский","Гатиятов Д. Р.",null,"МАОУ СШ № 121 г. Красноярск",2085,7,10,12,1,30]
[64,"Советский","Дрыкова Д. П.",null,"МАОУ СШ № 134 г. Красноярск",2089,4,10,16,0,{"$f":"SUM(G70:J70)","v":30}]
[65,"Советский","Никитина К. С.",null,"МАОУ СШ № 134 г. Красноярск",2093,5,10,15,0,30]
[66,"Центральный","Федченко Ф. Д.",null,"МАОУ Гимназия № 2 г. Красноярск",2124,3,9,15,3,30]
[67,"Центральный","Рогачев Т. Р.",null,"МБОУ СШ № 4 г. Красноярск",2136,8,9,10,2,29]
[68,"Советский","Лузан В. В.",null,"МАОУ СШ № 1 г. Красноярск",2080,7,9,12,0,28]
[69,"Советский","Арсланбеков П. А.",null,"МАОУ СШ № 121 г. Красноярск",2084,1,10,14,2,27]
[70,"Советский","Мельников А. О.",null,"МАОУ СШ № 1 г. Красноярск",2081,8,10,9,0,27]
[71,"Советский","Бабайлова В. А.",null,"МАОУ СШ № 1 г. Красноярск",2075,6,10,6,4,26]
[72,"Советский","Бормотов Д. В.",null,"МАОУ СШ № 134 г. Красноярск",2087,5,9,11,1,26]
[73,"Октябрьский ","Распопин М. Н.",null,"МАОУ Гимназия № 13 \"Академ\"",2031,10,1,9,6,26]
[74,"жд","Шестакова К. А.",null,"МАОУ Лицей № 28 г. Красноярск",2004,3,10,13,0,26]
[75,"Октябрьский","Краснополов Я. А.",null,"МБОУ СШ № 99 г. Красноярск",2062,4,10,10,0,24]
[76,"ЖД","Биезайс П. И.",null,"МБОУ Прогимназия № 131 г. Красноярск",2009,10,1,9,3,23]
[77,"Октябрьский","Казанцева А. А.",null,"МБОУ СШ № 36 г. Красноярск",2037,6,10,7,0,23]
[78,"Октябрьский","Овчинников И. А.",null,"МБОУ СШ № 84 г. Красноярск",2058,9,1,6,6,22]
[79,"ЖД","Шарипова А. К.",null,"МБОУ Прогимназия № 131 г. Красноярск",2011,6,10,5,1,22]
[80,"Советский","Елистратова Е. А.",null,"МАОУ СШ № 1 г. Красноярск",2077,5,10,5,1,21]
[81,"Советский","Капшанинов К. А.",null,"МАОУ СШ № 1 г. Красноярск",2079,6,8,5,0,19]
[82,"Свердловский","Лукьянов Л. Н.",null,"МАОУ СШ № 45 г. Красноярск",2070,5,6,7,0,18]
[83,"Центральный","Павленко Д. П.",null,"МБОУ СШ № 4 г. Красноярск",2135,3,6,7,1,17]
[84,"Советский","Столярова П. Т.",null,"МАОУ СШ № 1 г. Красноярск",2082,4,2,5,2,13]
[85,"Октябрьский","Измайлова М. Р.",null,"МБОУ СШ № 99 г. Красноярск",2060,5,0,7,0,12]
[86,"Советский","Золотарева Т. П.",null,"МАОУ СШ № 1 г. Красноярск",2078,4,0,5,0,9]
[87,"Советский","Кавардин А. С.",null,"МАОУ СШ № 134 г. Красноярск",2090,3,0,0,0,3]
[null,"Советский",null,null,"МАОУ СШ № 134 г. Красноярск",null,null,null,null,null,0,"неявка"]
[null,"Центральный",null,null,"МАОУ Гимназия № 2 г. Красноярск",null,null,null,null,null,0,"неявка"]
[null,"Октябрьский",null,null,"МБОУ СШ № 73 г. Красноярск",null,null,null,null,null,0,"неявка"]
[null,"Октябрьский",null,null,"МБОУ СШ № 73 г. Красноярск",null,null,null,null,null,0,"неявка"]
[null,"Октябрьский",null,null,"МБОУ СШ № 73 г. Красноярск",null,null,null,null,null,0,"неявка"]
[null,"Свердловский",null,null,"МАОУ Лицей № 9 «Лидер» имени А.М. Клешко г. Красноярск",null,null,null,null,null,0,"неявка"]
[null,"Центральный",null,null,"МАОУ Гимназия № 2 г. Красноярск",null,null,null,null,null,0,"неявка"]
[null,"Центральный",null,null,"МБОУ Гимназия № 16 г. Красноярск",null,null,null,null,null,0,"неявка"]
[null,"Октябрьский",null,null,"МБОУ СШ № 73 г. Красноярск",null,null,null,null,null,{"$f":"SUM(G102:J102)","v":0},"неявка"]
[null,"Центральный",null,null,"МАОУ Гимназия № 2 г. Красноярск",null,null,null,null,null,0,"неявка"]
[null,"Советский",null,null,"МАОУ СШ № 134 г. Красноярск",null,null,null,null,null,0,"неявка"]
[null,"Советский",null,null,"МАОУ СШ № 1 г. Красноярск",null,null,null,null,null,0,"неявка"]
[null,"Октябрьский",null,null,"МБОУ СШ № 73 г. Красноярск",null,null,null,null,null,0,"неявка"]
[null,"Свердловский",null,null,"МБОУ СШ № 62 г. Красноярск",null,null,null,null,null,0,"неявка"]
[null,"Октябрьский",null,null,"МБОУ СШ № 73 г. Красноярск",null,null,null,null,null,0,"неявка"]
[null,"Октябрьский",null,null,"МБОУ СШ № 73 г. Красноярск",null,null,null,null,null,0,"неявка"]
[null,"Октябрьский",null,null,"МБОУ СШ № 73 г. Красноярск",null,null,null,null,null,0,"неявка"]
[null,"Октябрьский",null,null,"МБОУ СШ № 73 г. Красноярск",null,null,null,null,null,0,"неявка"]
[null,"Свердловский",null,null,"МБОУ СШ № 62 г. Красноярск",null,null,null,null,null,0,"неявка"]
[null,"Октябрьский",null,null,"МБОУ СШ № 73 г. Красноярск",null,null,null,null,null,0,"неявка"]
[null,"Центральный",null,null,"МАОУ Гимназия № 2 г. Красноярск",null,null,null,null,null,0,"неявка"]
[null,"Октябрьский",null,null,"МБОУ СШ № 73 г. Красноярск",null,null,null,null,null,0,"неявка"]
[null,"Октябрьский",null,null,"МБОУ СШ № 73 г. Красноярск",null,null,null,null,null,0,"неявка"]
[null,"Центральный",null,null,"МАОУ Гимназия № 2 г. Красноярск",null,null,null,null,null,0,"неявка"]
[null,"Советский",null,null,"МАОУ СШ № 134 г. Красноярск",null,null,null,null,null,0,"неявка"]
[null,"Октябрьский",null,null,"МБОУ СШ № 73 г. Красноярск",null,null,null,null,null,0,"неявка"]
[null,"Октябрьский",null,null,"МБОУ СШ № 73 г. Красноярск",null,null,null,null,null,0,"неявка"]
[null,"Центральный",null,null,"МАОУ Гимназия № 2 г. Красноярск",null,null,null,null,null,0,"неявка"]
[null,"Свердловский",null,null,"МАОУ Лицей № 9 «Лидер» имени А.М. Клешко г. Красноярск",null,null,null,null,null,0,"неявка"]
[null,"Октябрьский",null,null,"МБОУ СШ № 73 г. Красноярск",null,null,null,null,null,0,"неявка"]
[null,"Центральный",null,null,"МАОУ Гимназия № 2 г. Красноярск",null,null,null,null,null,0,"неявка"]
[null,"Октябрьский ",null,null,"МАОУ Гимназия № 13 \"Академ\"",null,null,null,null,null,0,"неявка"]
[null,"Центральный",null,null,"МАОУ Гимназия № 2 г. Красноярск",null,null,null,null,null,0,"неявка"]
[null,"Советский",null,null,"МАОУ СШ № 134 г. Красноярск",null,null,null,null,null,0,"неявка"]
[null,"Центральный",null,null,"МАОУ Гимназия № 2 г. Красноярск",null,null,null,null,null,0,"неявка"]
[null,"Свердловский",null,null,"МАОУ СШ № 76 г. Красноярск",null,null,null,null,null,0,"неявка"]
[null,"Центральный",null,null,"МАОУ Гимназия № 2 г. Красноярск",null,null,null,null,null,0,"неявка"]
[null,"Октябрьский",null,null,"МБОУ СШ № 73 г. Красноярск",null,null,null,null,null,0,"неявка"]
[null,"Свердловский",null,null,"МАОУ Лицей № 9 «Лидер» имени А.М. Клешко г. Красноярск",null,null,null,null,null,0,"неявка"]
[null,"Центральный",null,null,"МАОУ Гимназия № 2 г. Красноярск",null,null,null,null,null,0,"неявка"]
[null,"Свердловский",null,null,"МАОУ СШ № 42 г. Красноярск",null,null,null,null,null,{"$f":"SUM(G134:J134)","v":0},"неявка"]
[null,"Центральный",null,null,"МАОУ Гимназия № 2 г. Красноярск",null,null,null,null,null,0,"неявка"]
[null,"Октябрьский",null,null,"МБОУ СШ № 73 г. Красноярск",null,null,null,null,null,0,"неявка"]
[null,"ЖД",null,null,"МАОУ Лицей № 7 г. Красноярск",null,null,null,null,null,0,"неявка"]
[null,"Центральный",null,null,"МАОУ Гимназия № 2 г. Красноярск",null,null,null,null,null,0,"неявка"]
[null,"Октябрьский",null,null,"МБОУ СШ № 73 г. Красноярск",null,null,null,null,null,0,"неявка"]
[null,"Советский",null,null,"МАОУ СШ № 134 г. Красноярск",null,null,null,null,null,0,"неявка"]
[null,"Центральный",null,null,"МАОУ Гимназия № 2 г. Красноярск",null,null,null,null,null,0,"неявка"]
[null,"Советский",null,null,"МАОУ СШ № 134 г. Красноярск",null,null,null,null,null,0,"неявка"]

{"sheet":"Лист1","index":1,"n_rows":0,"n_cols":0,"rows_kept":0,"cut":false,"hidden":false,"merged":[]}